bitfinex-derivatives/quotes_SOLF0:USTF0_20241127
["timestamp","ask_amount","ask_price","bid_price","bid_amount"]
[1732720701032,286.21812336,238.94,238.73,3.34]
[1732720701327,16.19523564,238.93,238.79,2.0933]
[1732720701533,12.39343564,238.92,238.79,2.0933]
[1732720701727,2.0929,238.84,238.7,3.34]
[1732720702729,2.10978912,238.87,238.69,1.2297]
[1732720702934,3.34,238.91,238.67,383.96462]
[1732720703241,319.66435116,238.9,238.67,383.96462]
[1732720703528,12.56,238.88,238.67,383.96462]
[1732720703838,2.0942,238.69,238.67,258.33207979]
[1732720704024,3.34,238.68,238.67,258.33207979]
[1732720704531,3.34,238.68,238.67,67.47647316]
[1732720705534,3.34,238.68,238.67,22.51857805]
[1732720706033,3.34,238.68,238.44,2.4424]
[1732720706637,12.38175957,238.67,238.44,2.4424]
[1732720706943,3.34,238.66,238.51,2.0957]
[1732720708134,2.0946,238.65,238.45,3.34]
[1732720708433,3.34,238.67,238.45,3.34]
[1732720709133,3.34,238.67,238.55,2.0954]
[1732720709333,27.4755002,238.73,238.45,3.34]
[1732720709637,27.4755002,238.73,238.59,2.095]
[1732720709834,3.36,238.72,238.59,2.095]
[1732720710036,27.4755002,238.73,238.45,3.34]
[1732720710242,3.36,238.72,238.45,3.34]
[1732720710537,2.0942,238.69,238.45,3.34]
[1732720710838,3.36,238.72,238.62,2.0947]
[1732720711236,2.094,238.71,238.54,3.36]
[1732720711628,2.094,238.71,238.63,2.0947]
[1732720712136,3.36,238.72,238.63,2.0947]
[1732720712439,3.36,238.72,238.54,3.36]
[1732720713229,2.0942,238.69,238.54,3.36]
[1732720713435,3.36,238.7,238.64,2.0946]
[1732720713633,25.42846749,238.73,238.64,2.0946]
[1732720714038,2.0941,238.71,238.64,2.0946]
[1732720714542,2.0939,238.73,238.54,3.36]
[1732720714729,14.66510605,238.89,238.54,3.36]
[1732720714931,11.54539368,238.88,238.54,3.36]
[1732720715140,2.0934,238.79,238.54,3.36]
[1732720715442,3.78644647,238.88,238.54,3.36]
[1732720715443,3.16,238.88,238.54,3.36]
[1732720715637,2.0932,238.81,238.55,0.76978254]
[1732720715940,32.68,238.91,238.56,13.7878]
[1732720715941,3.16,238.85,238.56,13.7878]
[1732720716138,2.0928,238.86,238.78,2.0934]
[1732720716338,3.16,238.92,238.73,3.16]
[1732720716638,2.092,238.94,238.81,2.0931]
[1732720716836,2.092,238.94,238.8,3.16]
[1732720717138,3.16,238.98,238.74,6.9198]
[1732720717439,3.16,238.98,238.74,3.7598]
[1732720717836,12.28528442,238.97,238.74,3.7598]
[1732720718039,12.28571875,238.96,238.74,3.7598]
[1732720718346,2.0929,238.84,238.77,2.0935]
[1732720718639,3.16,238.88,238.77,2.0935]
[1732720718834,3.16,238.88,238.74,3.7598]
[1732720719637,5.25991508,238.88,238.74,3.7598]
[1732720719832,2.0929,238.84,238.75,2.0937]
[1732720720035,5.25991508,238.88,238.74,3.7598]
[1732720720347,3.16,238.88,238.74,3.7598]
[1732720723536,2.0928,238.85,238.74,3.7598]
[1732720724040,2.0925,238.89,238.82,2.093]
[1732720724234,5.22159011,238.9,238.74,3.7598]
[1732720724440,2.0932,238.81,238.76,2.0935]
[1732720724841,5.22159011,238.9,238.74,3.7598]
[1732720725041,3.16,238.9,238.74,3.7598]
[1732720725440,2.092,238.95,238.83,2.093]
[1732720725645,5.29587158,239.02,238.75,3.16]
[1732720725847,3.16,239.02,238.75,3.16]
[1732720726141,13.18579689,239.01,238.74,3.7598]
[1732720726546,2.0929,238.84,238.79,2.0933]
[1732720726742,3.16,238.89,238.74,3.7598]
[1732720726943,3.16,238.88,238.74,3.7598]
[1732720727139,2.0931,238.82,238.76,2.0935]
[1732720727346,3.16,238.85,238.74,3.7598]
[1732720727849,2.0933,238.8,238.74,5.8535]
[1732720728048,3.16,238.85,238.74,5.8535]
[1732720728447,3.16,238.85,238.75,2.0936]
[1732720728849,3.16,238.85,238.74,3.7598]
[1732720729248,3.16,238.85,238.74,5.8535]
[1732720729447,3.16,238.85,238.74,3.7598]
[1732720730151,2.093,238.83,238.78,2.0934]
[1732720730943,3.16,238.85,238.79,2.0933]
[1732720731151,3.16,238.85,238.74,3.7598]
[1732720731353,44.02631652,238.98,238.74,3.7598]
[1732720731651,3.16,238.95,238.74,3.7598]
[1732720732447,2.0929,238.85,238.78,2.0933]
[1732720732646,2.0929,238.85,238.74,3.7598]
[1732720732647,3.16,238.95,238.74,3.7598]
[1732720733048,24.91525949,238.94,238.74,3.7598]
[1732720733454,25.54122648,238.93,238.74,3.7598]
[1732720733655,12.98122648,238.92,238.75,2.0936]
[1732720733853,12.9813347,238.91,238.74,3.7598]
[1732720734050,12.35525949,238.9,238.74,3.7598]
[1732720734350,3.16,238.95,238.74,3.7598]
[1732720734550,12.36933554,238.94,238.74,3.7598]
[1732720734757,12.36933554,238.93,238.74,3.7598]
[1732720734953,12.36933554,238.92,238.74,3.7598]
[1732720735254,12.36933554,238.91,238.74,3.7598]
[1732720735459,3.16,238.95,238.8,2.0931]
[1732720735651,12.37654085,238.94,238.8,2.0931]
[1732720735853,12.37654085,238.93,238.74,3.7598]
[1732720736059,44.02631652,238.98,238.75,3.16]
[1732720736356,24.60619646,238.97,238.75,3.16]
[1732720736562,2.0928,238.85,238.8,2.0932]
[1732720736762,3.16,238.89,238.75,3.16]
[1732720737061,2.0931,238.82,238.77,2.0934]
[1732720737367,3.16,238.85,238.74,3.7598]
[1732720737754,2.093,238.83,238.76,2.0936]
[1732720737952,2.093,238.83,238.74,3.7598]
[1732720738863,3.16,238.85,238.78,2.0934]
[1732720738864,5.2529,238.85,238.78,2.0934]
[1732720739055,3.16,238.85,238.78,2.0934]
[1732720739263,3.16,238.85,238.74,3.7598]
[1732720740567,44.02631652,238.98,238.75,3.16]
[1732720740758,24.65344214,238.97,238.75,3.16]
[1732720741061,12.40361658,238.96,238.75,3.16]
[1732720741268,44.02631652,238.98,238.75,3.16]
[1732720741269,15.56361658,238.95,238.75,3.16]
[1732720741469,44.02631652,238.98,238.75,3.16]
[1732720741668,12.40750704,238.97,238.75,3.16]
[1732720741867,4.1801,239.17,238.76,4.1872]
[1732720742066,24.65745137,239.15,238.77,12.56]
[1732720742269,20.87180842,239.14,238.77,12.56]
[1732720742470,24.03180842,239.13,238.78,4.1868]
[1732720742760,34.05745137,239.12,238.78,4.1868]
[1732720742966,12.56,239.1,238.78,4.1868]
[1732720743164,20.87180842,239.11,238.79,16.7467]
[1732720743165,23.91180842,239.09,238.79,16.7467]
[1732720743366,2.091,239.05,238.97,2.0917]
[1732720743563,5.13635456,239.09,238.89,3.04]
[1732720743864,2.0915,239.0,238.9,4.6442]
[1732720744068,0.62552245,239.08,238.9,2.5519]
[1732720744269,2.09635456,239.09,238.9,2.5519]
[1732720744270,12.40278785,239.07,238.9,2.5519]
[1732720744570,12.40278785,239.06,238.98,2.0916]
[1732720744764,5.14598612,239.09,238.98,2.0916]
[1732720744962,5.14598612,239.09,238.9,2.5519]
[1732720744963,2.091,239.06,238.9,2.5519]
[1732720745162,3.04,239.09,238.94,3.04]
[1732720745564,3.04,239.09,238.98,2.0917]
[1732720745565,2.091,239.05,238.98,2.0917]
[1732720746065,2.091,239.05,238.94,3.04]
[1732720746066,3.04,239.09,238.94,3.04]
[1732720746873,3.04,239.09,239.01,2.0913]
[1732720747177,3.04,239.09,238.94,3.04]
[1732720747366,2.0905,239.12,238.94,3.04]
[1732720747567,32.66,239.31,238.94,5.1306926]
[1732720747771,3.64522314,239.21,238.94,5.1306926]
[1732720747970,5.71499626,239.2,238.94,5.1306926]
[1732720748171,3.64522314,239.19,238.94,3.04]
[1732720748371,3.02,239.2,238.95,2.09655005]
[1732720748676,12.35911378,239.19,238.9,2.5519]
[1732720748968,12.35911378,239.18,239.0,2.0914]
[1732720749172,12.98427446,239.18,238.91,3.02]
[1732720749372,16.00427446,239.17,238.91,3.02]
[1732720749567,15.37911378,239.17,238.91,3.02]
[1732720749776,12.98437021,239.16,238.91,3.02]
[1732720749972,12.98437021,239.16,238.9,2.5519]
[1732720749973,12.98439755,239.15,238.92,3.02]
[1732720750169,12.98439755,239.14,238.92,3.02]
[1732720750469,2.0913,239.03,238.9,2.5519]
[1732720750673,3.02,239.06,238.9,2.5519]
[1732720750968,2.082534,239.21,238.9,2.5519]
[1732720750969,3.02,239.12,238.9,2.5519]
[1732720751168,2.0904,239.12,238.9,2.5519]
[1732720751563,4.1782,239.28,238.9,2.5519]
[1732720751766,2.08596785,239.43,238.9,2.5519]
[1732720751767,12.07368415,239.27,238.9,2.5519]
[1732720752073,9.05368415,239.26,238.9,2.5519]
[1732720752268,21.40622561,239.25,238.9,2.5519]
[1732720752472,20.78101643,239.24,238.9,2.5519]
[1732720752674,2.0903,239.14,238.9,2.5519]
[1732720752873,24.42622561,239.23,238.9,15.1119]
[1732720752874,3.02,239.23,238.9,15.1119]
[1732720753070,12.97913178,239.22,238.9,15.1119]
[1732720753275,2.0902,239.15,239.07,2.0909]
[1732720753573,3.02,239.23,239.03,3.02]
[1732720753776,3.02,239.23,239.04,2.4268]
[1732720753777,20.78460796,239.22,239.04,2.4268]
[1732720753972,12.35469476,239.21,239.04,2.4268]
[1732720754172,12.35469476,239.2,239.04,2.4268]
[1732720754372,3.02,239.23,239.04,3.6633]
[1732720754669,2.0904,239.12,239.04,5.7544]
[1732720754870,0.62513576,239.22,239.04,5.7544]
[1732720755074,3.02,239.23,239.04,5.7544]
[1732720755075,12.35751968,239.21,239.04,5.7544]
[1732720755271,2.0904,239.12,239.04,5.7544]
[1732720755666,3.02,239.15,238.86,18.00400857]
[1732720755871,3.02,239.14,238.95,1.2503]
[1732720756072,3.02,239.13,238.96,3.02]
[1732720756276,12.56,239.23,238.96,3.02]
[1732720756277,3.02,239.14,238.96,3.02]
[1732720757372,2.0907,239.09,238.96,3.02]
[1732720757877,3.02,239.14,238.96,3.02]
[1732720758080,3.02,239.14,239.0,2.0914]
[1732720758081,2.0909,239.07,239.0,2.0914]
[1732720758372,3.02,239.14,239.0,2.0914]
[1732720758675,12.37397432,239.13,238.95,1.2503]
[1732720758891,12.37397432,239.12,238.95,1.2503]
[1732720759177,12.37397432,239.11,238.95,1.2503]
[1732720759378,12.37397432,239.13,238.95,1.2503]
[1732720759580,2.0912,239.03,238.95,1.2503]
[1732720759774,3.02,239.12,238.95,1.2503]
[1732720759975,2.0911,239.04,238.97,2.0917]
[1732720760176,3.02,239.12,238.95,1.2503]
[1732720760373,12.38419698,239.11,238.95,1.2503]
[1732720760580,12.38419698,239.1,238.95,1.2503]
[1732720760780,2.091,239.06,238.95,1.2503]
[1732720761283,2.0911,239.04,238.97,2.0917]
[1732720761582,3.02,239.12,238.95,1.2503]
[1732720761782,12.38682702,239.11,238.95,1.2503]
[1732720761979,12.38682702,239.1,238.95,1.2503]
[1732720762285,12.38775241,239.09,238.95,1.2503]
[1732720762482,3.02,239.12,238.95,1.2503]
[1732720762684,20.83907073,239.11,238.95,1.2503]
[1732720762985,20.83907073,239.1,238.95,1.2503]
[1732720763182,20.84077157,239.09,238.9,1.2843]
[1732720763385,12.38679212,239.08,238.9,1.2843]
[1732720763679,12.38679212,239.07,238.9,1.2843]
[1732720763884,3.02,239.12,238.9,1.2843]
[1732720764084,2.0909,239.07,238.9,1.2843]
[1732720764284,3.02,239.12,238.9,1.2843]
[1732720764479,12.3914379,239.11,238.9,1.2843]
[1732720764683,3.02,239.12,238.9,1.2843]
[1732720764878,12.39115743,239.11,238.9,1.2843]
[1732720765082,2.0909,239.07,238.99,2.0915]
[1732720765291,2.0909,239.07,238.9,1.2843]
[1732720765584,2.0908,239.09,239.01,2.0914]
[1732720765884,3.02,239.12,238.9,1.2843]
[1732720766092,43.98822575,239.17,238.9,13.8443]
[1732720766387,12.39238429,239.16,238.92,12.56]
[1732720766586,12.39238429,239.15,238.92,12.56]
[1732720766783,43.98822575,239.17,238.93,2.07566603]
[1732720766988,12.39429202,239.14,238.92,12.56]
[1732720767287,43.98822575,239.17,238.93,2.11373629]
[1732720767582,12.39565143,239.16,238.93,2.11373629]
[1732720767782,2.0904,239.12,239.06,2.0909]
[1732720767981,43.98822575,239.17,239.02,3.02]
[1732720768186,43.98822575,239.17,239.03,2.5944]
[1732720768187,12.39609033,239.16,239.03,2.5944]
[1732720768586,12.39609033,239.15,239.06,2.0909]
[1732720768783,43.98822575,239.17,239.06,2.0909]
[1732720768984,2.0904,239.12,239.06,2.0909]
[1732720769283,43.98822575,239.17,239.03,2.5944]
[1732720769486,2.0904,239.13,238.98,3.02]
[1732720769683,43.98822575,239.17,238.96,3.02]
[1732720769684,12.40169501,239.12,238.96,3.02]
[1732720769880,43.98822575,239.17,239.0,2.0915]
[1732720770187,20.86350962,239.16,239.0,2.0915]
[1732720770388,2.091,239.06,239.0,2.0915]
[1732720770579,2.091,239.06,238.97,3.02]
[1732720770778,2.13785686,239.12,238.94,2.4772]
[1732720770779,3.02,239.12,238.94,2.4772]
[1732720770979,12.40322722,239.11,238.95,3.02]
[1732720771191,2.091,239.06,238.97,2.0917]
[1732720771486,2.091,239.06,238.95,3.02]
[1732720771891,5.08381309,239.12,238.95,3.02]
[1732720772088,2.0911,239.05,238.94,2.4772]
[1732720772291,5.08381309,239.12,238.99,2.0916]
[1732720772492,2.0908,239.08,238.99,2.0916]
[1732720772784,5.08381309,239.12,238.94,1.1952]
[1732720772991,21.49773738,239.11,238.97,2.0917]
[1732720773192,2.0911,239.05,238.97,2.0917]
[1732720773492,2.0911,239.05,238.94,1.1952]
[1732720773790,2.0909,239.07,238.94,1.1952]
[1732720773994,5.08381309,239.12,238.94,1.1952]
[1732720774289,2.0912,239.04,238.94,1.1952]
[1732720774685,2.06381309,239.12,238.94,1.1952]
[1732720774884,12.41056695,239.11,238.94,1.1952]
[1732720775087,17.37531758,239.1,238.94,1.1952]
[1732720775288,15.33056695,239.09,238.94,1.1952]
[1732720775489,15.33056695,239.08,238.94,1.1952]
[1732720775690,2.0913,239.03,238.94,1.1952]
[1732720775890,2.0913,239.03,238.91,2.92]
[1732720776193,2.0913,239.03,238.9,2.92]
[1732720776491,2.92,239.11,238.9,2.92]
[1732720776693,12.42145349,239.1,238.9,2.92]
[1732720776890,2.92,239.11,238.98,2.0916]
[1732720776891,2.0911,239.05,238.98,2.0916]
[1732720777387,2.04856467,239.09,238.9,2.92]
[1732720777388,2.091,239.06,238.96,2.0917]
[1732720777587,2.92,239.11,238.9,2.92]
[1732720777786,12.42618561,239.1,238.9,2.92]
[1732720777987,12.42618561,239.09,238.9,2.92]
[1732720778185,2.92,239.11,238.9,15.48]
[1732720778389,12.43285028,239.1,238.91,4.97624858]
[1732720778592,2.92,239.11,238.9,21.18593475]
[1732720778793,12.43256186,239.1,238.92,12.56]
[1732720778990,2.92,239.15,238.92,12.56]
[1732720779192,2.0905,239.11,239.05,2.091]
[1732720779396,2.92,239.15,238.98,2.92]
[1732720779592,20.92764956,239.14,238.99,2.4106]
[1732720779898,2.0905,239.12,238.99,2.4106]
[1732720780098,12.43973855,239.11,239.0,1.2025]
[1732720780497,14.53033855,239.11,239.0,1.2025]
[1732720780701,2.0906,239.11,239.0,1.2025]
[1732720780998,12.44561355,239.1,239.0,1.2025]
[1732720781193,2.0906,239.11,239.04,2.0911]
[1732720781495,14.54064439,239.1,239.0,1.2025]
[1732720781700,12.45050239,239.09,239.0,3.294]
[1732720781896,17.57240031,239.15,239.0,3.294]
[1732720781897,12.45050239,239.08,239.0,3.294]
[1732720782089,12.45050239,239.07,239.0,2.0915]
[1732720782300,17.57240031,239.15,239.0,2.0915]
[1732720782495,21.59062936,239.14,238.99,1.198]
[1732720782800,21.59062936,239.13,238.99,1.198]
[1732720783093,23.05571824,239.12,239.05,2.091]
[1732720783298,20.96531824,239.11,239.05,2.091]
[1732720783496,2.0904,239.12,239.05,2.091]
[1732720783497,12.4620685,239.1,239.05,2.091]
[1732720783700,2.0904,239.12,239.05,2.091]
[1732720783701,12.4620685,239.11,239.05,2.091]
[1732720783901,12.47347224,239.1,239.05,2.091]
[1732720784101,12.47347224,239.09,238.99,1.198]
[1732720784303,2.92,239.16,239.06,2.0909]
[1732720784503,21.00687634,239.15,239.06,2.0909]
[1732720784694,21.00687634,239.14,239.06,2.0909]
[1732720784895,21.00687634,239.13,239.06,2.0909]
[1732720785203,21.00687634,239.12,239.06,2.0909]
[1732720785401,21.01683574,239.11,239.06,2.0909]
[1732720785703,12.48686934,239.1,238.99,1.198]
[1732720785903,12.48686934,239.09,238.99,1.198]
[1732720786100,5.0101,239.16,239.09,2.0907]
[1732720786302,20.71227536,239.15,238.99,1.198]
[1732720786596,20.71227536,239.14,238.99,1.198]
[1732720786802,20.71227536,239.13,238.99,1.198]
[1732720787002,20.71227536,239.12,238.99,1.198]
[1732720787195,2.0901,239.16,239.04,2.0911]
[1732720787403,20.71653909,239.15,239.05,1.2842]
[1732720787695,20.71653909,239.14,239.05,1.2842]
[1732720787901,2.92,239.2,239.05,1.2842]
[1732720787902,20.71653909,239.13,239.05,1.2842]
[1732720788098,12.17807792,239.12,239.05,1.2842]
[1732720788298,2.92,239.2,239.05,1.2842]
[1732720788505,20.71980395,239.19,239.05,1.2842]
[1732720788701,20.71980395,239.18,239.05,1.2842]
[1732720788900,20.71980395,239.17,239.05,1.2842]
[1732720789099,20.71980395,239.16,239.05,1.2842]
[1732720789301,20.71980395,239.15,239.05,1.2842]
[1732720789599,20.71980395,239.14,239.05,1.2842]
[1732720789796,20.71980395,239.13,239.05,1.2842]
[1732720790003,20.71980395,239.12,239.05,1.2842]
[1732720790200,2.09,239.18,239.05,1.2842]
[1732720790701,2.92,239.2,239.05,1.2842]
[1732720790898,2.09,239.17,239.05,1.2842]
[1732720791098,12.18133741,239.17,239.05,1.2842]
[1732720791299,8.54072516,239.16,239.11,2.0905]
[1732720791705,8.54072516,239.16,239.09,2.0906]
[1732720791905,10.63082516,239.16,239.09,2.0906]
[1732720792199,8.54072516,239.16,239.08,2.0908]
[1732720792406,8.54072516,239.16,239.03,2.92]
[1732720792407,2.0904,239.13,239.03,2.92]
[1732720792606,8.54072516,239.12,238.99,4.118]
[1732720792901,8.54072516,239.12,239.05,2.091]
[1732720793604,2.0905,239.11,238.99,4.118]
[1732720794204,8.54072516,239.12,239.05,2.091]
[1732720794205,10.63112516,239.12,239.05,2.091]
[1732720794403,8.54072516,239.12,238.99,4.118]
[1732720794603,12.18133741,239.1,238.99,4.118]
[1732720794803,12.18133741,239.1,239.06,2.091]
[1732720795198,12.18133741,239.1,238.99,4.118]
[1732720796308,8.54072516,239.09,239.07,2.0909]
[1732720796605,4.8006,239.18,238.99,4.118]
[1732720796807,9.16571051,239.17,238.99,4.118]
[1732720797007,2.0904,239.13,238.99,4.118]
[1732720797202,8.54055625,239.12,238.99,4.118]
[1732720797400,8.54055625,239.11,238.99,4.118]
[1732720797606,8.54055625,239.1,238.99,4.118]
[1732720797907,4.8006,239.18,238.99,4.118]
[1732720798098,0.62510281,239.17,238.99,4.118]
[1732720798304,8.54003869,239.16,239.04,2.0911]
[1732720798505,8.54003869,239.15,238.99,4.118]
[1732720798705,8.54003869,239.14,238.99,4.118]
[1732720798907,8.54003869,239.13,239.1,2.0906]
[1732720799102,4.8006,239.18,238.99,4.118]
[1732720799412,10.62841686,239.17,239.1,2.0906]
[1732720799710,8.53841686,239.16,238.99,4.118]
[1732720799914,8.53841686,239.15,238.99,4.118]
[1732720800114,8.53841686,239.14,238.99,4.118]
[1732720800409,8.53841686,239.13,238.99,4.118]
[1732720800609,2.09,239.17,239.1,2.0905]
[1732720800809,8.53714076,239.16,239.1,2.0905]
[1732720801005,8.53714076,239.15,239.1,2.0905]
[1732720801207,8.53714076,239.14,239.1,2.0905]
[1732720801406,12.1754711,239.14,239.1,2.0905]
[1732720801607,12.1754711,239.17,239.1,2.0905]
[1732720801808,12.1754711,239.16,239.1,2.0905]
[1732720802004,12.1754711,239.15,239.1,2.0905]
[1732720802307,4.8006,239.18,239.1,2.0905]
[1732720802503,8.53337913,239.17,239.1,2.0905]
[1732720802709,8.53337913,239.16,239.1,2.0905]
[1732720803009,12.17094489,239.15,239.06,2.9]
[1732720803208,2.9,239.23,239.07,5.4223]
[1732720803508,2.0899,239.18,239.1,2.0905]
[1732720803713,12.16714639,239.17,239.07,5.4223]
[1732720803914,2.0901,239.16,239.09,2.0907]
[1732720804108,2.9,239.23,239.07,5.4223]
[1732720804304,21.32267736,239.22,239.07,5.4223]
[1732720804514,8.53063842,239.21,239.07,2.9]
[1732720804715,8.53063842,239.2,239.02,2.9]
[1732720804913,8.53063842,239.2,239.08,2.0908]
[1732720804914,2.0903,239.14,239.08,2.0908]
[1732720805113,2.9,239.23,239.08,2.0908]
[1732720805309,21.3203623,239.22,239.08,2.0908]
[1732720805510,2.0901,239.16,239.09,2.0907]
[1732720805710,8.52968472,239.15,239.09,2.0907]
[1732720805914,7.6766,239.26,239.03,2.9]
[1732720806117,2.0897,239.2,239.13,2.0903]
[1732720806417,8.52860513,239.19,239.06,2.05757518]
[1732720806714,8.52860513,239.18,239.03,2.9]
[1732720806909,2.9,239.25,239.03,2.9]
[1732720807105,20.97845814,239.24,239.03,2.9]
[1732720807306,20.97845814,239.23,239.03,2.9]
[1732720807611,20.97845814,239.22,239.03,2.9]
[1732720807806,20.97845814,239.21,239.03,2.9]
[1732720808006,20.97845814,239.2,239.03,2.9]
[1732720808218,2.9,239.25,239.03,2.9]
[1732720808219,20.35353543,239.19,239.03,2.9]
[1732720808407,23.87856492,239.18,239.03,2.9]
[1732720808607,2.0901,239.16,239.09,2.0907]
[1732720808806,8.52705137,239.15,239.03,2.9]
[1732720809017,2.9,239.2,239.03,2.9]
[1732720809215,20.35663962,239.19,239.13,2.0903]
[1732720809418,8.52825988,239.18,239.13,2.0903]
[1732720809618,2.09,239.18,239.08,2.0908]
[1732720809816,2.09,239.18,239.03,2.9]
[1732720809817,2.9,239.2,239.06,2.12064845]
[1732720810012,8.52697213,239.19,239.03,2.9]
[1732720810214,8.52697213,239.18,239.11,2.0904]
[1732720810417,2.9,239.2,239.11,2.0904]
[1732720810615,2.9,239.2,239.03,2.9]
[1732720810820,8.52615047,239.19,239.03,2.9]
[1732720811113,8.52615047,239.18,239.03,2.9]
[1732720811318,2.9,239.2,239.04,2.9]
[1732720811519,8.52475393,239.19,239.04,2.9]
[1732720811719,8.52475393,239.18,239.04,2.9]
[1732720811910,2.0898,239.19,239.04,2.9]
[1732720812114,8.52472654,239.18,239.04,2.9]
[1732720812314,2.0898,239.19,239.13,2.0903]
[1732720812515,2.0898,239.19,239.04,2.9]
[1732720812516,8.5235755,239.18,239.04,2.9]
[1732720812711,2.0898,239.19,239.04,2.9]
[1732720812915,8.5235801,239.18,239.04,2.9]
[1732720813115,2.0898,239.19,239.04,2.9]
[1732720813312,8.52281439,239.18,239.01,2.588]
[1732720813516,2.0898,239.19,239.02,2.9]
[1732720813720,8.52267865,239.18,239.02,2.9]
[1732720813924,8.52266312,239.17,239.02,2.9]
[1732720814121,8.52266312,239.16,239.01,2.588]
[1732720814318,2.9,239.2,239.02,2.9]
[1732720814519,20.34252712,239.19,239.02,2.9]
[1732720814717,2.0901,239.17,239.02,2.9]
[1732720815226,2.0901,239.17,239.06,2.0909]
[1732720815420,10.61227943,239.16,239.02,2.9]
[1732720815720,2.0901,239.16,239.02,2.9]
[1732720815920,8.52229716,239.15,239.02,2.9]
[1732720816117,2.09,239.17,239.02,2.9]
[1732720816317,8.52262716,239.16,239.02,2.9]
[1732720816625,2.9,239.2,239.02,2.9]
[1732720816823,11.82080565,239.19,239.02,2.9]
[1732720817022,11.82080565,239.18,239.02,2.9]
[1732720817221,8.52299086,239.17,239.02,2.9]
[1732720817424,2.0902,239.15,239.02,2.9]
[1732720817916,2.0904,239.13,239.02,2.9]
[1732720818322,2.9,239.2,239.02,2.9]
[1732720818525,2.9,239.2,239.01,2.588]
[1732720818526,2.0904,239.12,239.01,2.588]
[1732720818916,2.9,239.2,239.01,2.588]
[1732720818917,2.12219805,239.14,239.01,2.588]
[1732720819122,23.25783884,239.13,238.94,2.9]
[1732720819323,23.25783884,239.12,238.93,2.6089]
[1732720819523,20.35783884,239.11,238.93,2.6089]
[1732720819825,20.35783884,239.1,238.94,2.05151389]
[1732720820037,20.35783884,239.09,239.05,2.091]
[1732720820236,2.9,239.12,239.0,2.9]
[1732720820527,20.36636489,239.11,239.03,2.0912]
[1732720820723,8.53249369,239.1,239.0,2.9]
[1732720820925,2.9,239.12,239.0,2.9]
[1732720821124,8.53213325,239.11,239.0,2.9]
[1732720821324,8.53213325,239.1,239.0,2.9]
[1732720821525,2.9,239.12,239.0,2.9]
[1732720821723,8.5363139,239.11,239.03,2.0912]
[1732720821921,8.5363139,239.1,239.0,2.9]
[1732720822119,4.9904,239.12,239.0,2.9]
[1732720822321,20.38345874,239.11,239.06,2.0909]
[1732720822518,8.5394996,239.1,239.0,2.9]
[1732720822719,10.6296996,239.16,239.0,2.9]
[1732720822922,20.38305194,239.15,239.0,2.9]
[1732720823120,2.0904,239.13,239.0,2.9]
[1732720823320,20.38305194,239.12,239.0,2.9]
[1732720823523,8.53946252,239.11,239.05,2.091]
[1732720823730,8.53946252,239.1,239.05,2.091]
[1732720823926,2.0903,239.14,239.05,2.091]
[1732720824128,20.39358534,239.13,239.09,2.0907]
[1732720824331,20.39358534,239.12,239.09,2.0907]
[1732720824533,2.9,239.17,239.09,2.0907]
[1732720824831,20.3939273,239.16,239.11,2.0905]
[1732720825030,20.3939273,239.15,239.11,2.0905]
[1732720825331,8.54400472,239.14,239.09,2.0906]
[1732720825523,20.39515958,239.13,239.09,2.0906]
[1732720825829,2.9,239.19,238.97,1.27865088]
[1732720825830,8.54400472,239.12,238.97,1.27865088]